fUST/lending_fUST_20260209
["ID","MTS","AMOUNT","RATE_DAILY","PERIOD"]
[404887417,1770649858572,-10108.66,0.00054794,30]
[404887418,1770649858582,-362.12,0.00054794,120]
[404887419,1770649858591,-362.12,0.00054794,120]
[404887420,1770649858600,-362.12,0.00054794,120]
[404887421,1770649858609,-362.12,0.00054794,120]
[404887422,1770649858618,-362.12,0.00054794,120]
[404887423,1770649858629,-362.12,0.00054794,120]
[404887424,1770649858640,-362.12,0.00054794,120]
[404887425,1770649858650,-362.12,0.00054794,120]
[404887426,1770649858659,-362.12,0.00054794,120]
[404887427,1770649858670,-362.12,0.00054794,120]
[404887428,1770649858679,-362.12,0.00054794,120]
[404887429,1770649858689,-362.12,0.00054794,120]
[404887430,1770649858699,-362.12,0.00054794,120]
[404887431,1770649858708,-362.12,0.00054794,120]
[404887432,1770649858717,-362.12,0.00054794,120]
[404887433,1770649858727,-362.12,0.00054794,120]
[404887434,1770649858736,-362.12,0.00054794,120]
[404887435,1770649858744,-362.12,0.00054794,120]
[404887436,1770649858843,-362.12,0.00054794,120]
[404887437,1770649858852,-362.12,0.00054794,120]
[404887438,1770649858862,-362.12,0.00054794,120]
[404887439,1770649858872,-527.36,0.00054794,120]
[404887440,1770649858881,-500.0,0.00054794,120]
[404887441,1770649858892,-298.11580191,0.00054794,120]
[404887442,1770649858901,-710.88,0.00054794,30]
[404887443,1770649858911,-594.8,0.00054794,120]
[404887444,1770649858921,-263.66371158,0.00054794,120]
[404887445,1770649858930,-67827.48,0.00054794,20]
[404887446,1770649858939,-609.92,0.00054794,120]
[404887447,1770649858949,-6934.0,0.00054795,2]
[404887448,1770649858958,-1150.0,0.00054795,30]
[404887449,1770649858967,-151.0,0.00054795,120]
[404887450,1770649858977,-151.0,0.00054795,120]
[404887451,1770649858987,-151.0,0.00054795,120]
[404887452,1770649858996,-151.0,0.00054795,120]
[404887453,1770649859005,-151.0,0.00054795,120]
[404887454,1770649859014,-151.0,0.00054795,120]
[404887455,1770649859025,-178.374255,0.00054795,120]
[404887456,1770649859035,-1000.0,0.00054795,120]
[404887457,1770649859044,-224.54236917,0.00054795,120]
[404887458,1770649859054,-1000.0,0.00054822,120]
[404887459,1770649859064,-200.0,0.00054829,120]
[404887460,1770649859074,-153.0,0.000549,120]
[404887461,1770649859083,-565.79,0.00054931,51]
[404887462,1770649859093,-743.18,0.00054996,30]
[404887463,1770649859104,-158.22637082,0.00055,120]
[404887464,1770649859114,-1113.37,0.00055,120]
[404887465,1770649859123,-152.79084405,0.00055,120]
[404887466,1770649859132,-797.77,0.00055068,120]
[404887467,1770649859144,-2499.97,0.00055068,2]
[404887468,1770649859154,-546.05,0.00055068,120]
[404887469,1770649859164,-802.85,0.00055068,120]
[404887470,1770649859173,-859.94,0.00055068,120]
[404887471,1770649859184,-880.16,0.00055068,120]
[404887472,1770649859194,-4901.28,0.00055068,2]
[404887473,1770649859204,-10108.66,0.00055068,30]
[404887474,1770649859214,-362.12,0.00055068,120]
[404887475,1770649859224,-527.36,0.00055068,120]
[404887476,1770649859233,-239.71058085,0.00055068,120]
[404887477,1770649859243,-710.88,0.00055068,30]
[404887478,1770649859253,-594.8,0.00055068,120]
[404887479,1770649859263,-67827.48,0.00055068,20]
[404887480,1770649859273,-609.92,0.00055068,120]
[404887481,1770649859283,-50000.0,0.000551,120]
[404887482,1770649859293,-50000.0,0.0005512,120]
[404887483,1770649859303,-797.77,0.00055342,120]
[404887484,1770649859312,-2499.97,0.00055342,2]
[404887485,1770649859322,-546.05,0.00055342,120]
[404887486,1770649859332,-802.85,0.00055342,120]
[404887487,1770649859341,-859.94,0.00055342,120]
[404887488,1770649859351,-880.16,0.00055342,120]
[404887489,1770649859360,-4901.28,0.00055342,2]
[404887490,1770649859370,-10108.66,0.00055342,30]
[404887491,1770649859379,-362.12,0.00055342,120]
[404887492,1770649859390,-527.36,0.00055342,120]
[404887493,1770649859399,-710.88,0.00055342,30]
[404887494,1770649859408,-594.8,0.00055342,120]
[404887495,1770649859418,-67827.48,0.00055342,20]
[404887496,1770649859428,-609.92,0.00055342,120]
[404887497,1770649859438,-206.1,0.00055583,120]
[404887498,1770649859447,-797.81049244,0.00055616,120]
[404887499,1770649859457,-2500.09,0.00055616,2]
[404887500,1770649859466,-546.11772707,0.00055616,120]
[404887501,1770649859476,-565.79,0.00055616,54]
[404887502,1770649859485,-802.87811821,0.00055616,120]
[404887503,1770649859494,-860.12723002,0.00055616,120]
[404887504,1770649859504,-880.26795757,0.00055616,120]
[404887505,1770649859513,-4901.29638769,0.00055616,2]
[404887506,1770649859523,-10108.77970924,0.00055616,30]
[404887507,1770649859532,-362.30942694,0.00055616,120]
[404887508,1770649859542,-527.36304244,0.00055616,120]
[404887509,1770649859551,-710.91746515,0.00055616,30]
[404887510,1770649859560,-594.87564111,0.00055616,120]
[404887511,1770649859570,-67827.52187581,0.00055616,20]
[404887512,1770649859580,-610.07790206,0.00055616,120]
[404887513,1770649859589,-153.0,0.000557,120]
[404887514,1770649859598,-17099.56835041,0.00055873,120]
[404887515,1770649859608,-3669.54,0.00055999,30]
[404887516,1770649859618,-250.0,0.00056,120]
[404887517,1770649859629,-1100.04708714,0.00056,120]
[404887518,1770649859639,-200.0,0.00056008,120]
[404887519,1770649859648,-838.72,0.000561,14]
[404887520,1770649859657,-565.79,0.00056301,57]
[404887521,1770649859668,-50000.0,0.0005647,120]
[404887522,1770649859677,-153.0,0.000565,120]
[404887523,1770649859686,-10000.0,0.00056643,120]
[404887524,1770649859695,-200.0,0.00056654,120]
[404887525,1770649859705,-5799.65712189,0.000569,2]
[404887526,1770649859714,-200.0,0.00056926,120]
[404887527,1770649859723,-200.0,0.00056979,120]
[404887528,1770649859733,-565.79,0.00056986,60]
[404887529,1770649859742,-181.92927569,0.00056986,30]
[404887530,1770649859751,-519.41160877,0.00057,120]
[404887531,1770649859761,-153.0,0.000574,120]
[404887532,1770649859770,-10000.0,0.00057499,120]
[404887533,1770649859780,-1500.0,0.000575,2]
[404887534,1770649859789,-500.0,0.000575,120]
[404887535,1770649859798,-200.0,0.00057534,120]
[404887536,1770649859807,-200.0,0.00057534,120]
[404887537,1770649859817,-229.27491225,0.00057534,120]
[404887538,1770649859826,-565.79,0.00057671,63]
[404887539,1770649859835,-1000.0,0.000578,60]
[404887540,1770649859844,-1000.0,0.000578,60]
[404887541,1770649859854,-200.0,0.00057817,120]
[404887542,1770649859863,-2000.0,0.000579,120]
[404887543,1770649859874,-1186.0,0.00058,120]
[404887544,1770649859883,-250.0,0.00058,120]
[404887545,1770649859895,-200.0,0.00058095,120]
[404887546,1770649859905,-1000.0,0.000581,60]
[404887547,1770649859914,-1000.0,0.000581,60]
[404887548,1770649859923,-153.0,0.000582,120]
[404887549,1770649859933,-565.79,0.00058356,66]
[404887550,1770649859942,-1000.0,0.000584,60]
[404887551,1770649859951,-1000.0,0.000587,60]
[404887552,1770649859960,-1000.0,0.000587,60]
[404887553,1770649859970,-200.0,0.000588,120]
[404887554,1770649859980,-309.30605,0.000588,120]
[404887555,1770649859990,-200.0,0.000588,120]
[404887556,1770649859999,-200.0,0.00058871,120]
[404887557,1770649860008,-11928.59930425,0.000589,120]
[404887558,1770649860017,-1000.0,0.00059,120]
[404887559,1770649860027,-1000.0,0.00059,60]
[404887560,1770649860038,-153.0,0.00059,120]
[404887561,1770649860048,-565.79,0.00059041,69]
[404887562,1770649860057,-30132.32609321,0.00059178,30]
[404887563,1770649860068,-30132.32609321,0.00059178,30]
[404887564,1770649860078,-1000.0,0.000593,60]
[404887565,1770649860087,-1000.0,0.000593,60]
[404887566,1770649860097,-1000.0,0.000596,60]
[404887567,1770649860107,-159.16091978,0.00059616,14]
[404887568,1770649860117,-565.79,0.00059726,72]
[404887569,1770649860127,-200.0,0.00059763,120]
[404887570,1770649860136,-153.0,0.000598,120]
[404887571,1770649860148,-1000.0,0.000599,60]
[404887572,1770649860158,-500.0,0.000599,120]
[404887573,1770649860168,-419.02483024,0.00059999,120]
[404887574,1770649860178,-496.4351494,0.00059999,7]
[404887575,1770649860187,-382.64618137,0.00059999,120]
[404887576,1770649860197,-359.78752261,0.00059999,120]
[404887577,1770649860206,-200.0,0.0006,120]
[404887578,1770649860217,-1000.0,0.0006,120]
[404887579,1770649860226,-2312.62486918,0.0006,120]
[404887580,1770649860236,-23490.42560425,0.0006,120]
[404887581,1770649860246,-1000.0,0.0006,120]
[404887582,1770649860255,-380.0,0.0006,5]
[404887583,1770649860265,-40000.0,0.0006,60]
[404887584,1770649860274,-6440.64936396,0.0006,120]
[404887585,1770649860284,-619.10071138,0.0006,120]
[404887586,1770649928401,756.31,0.00028986,120]
[404887587,1770649952829,752.18,0.00027307,120]
[404887588,1770649967471,748.08,0.00026337,120]
[404887589,1770649967959,1496.16,0.00029159,120]
[404887590,1770649987298,735.84,0.00026196,120]
[404887591,1770649987691,1471.68,0.00029003,120]
[404887596,1770650008974,723.8,0.00026193,120]
[404887597,1770650009338,1447.59,0.00029,120]
[404887598,1770650067524,711.95,0.00027182,120]
[404887599,1770650067926,1423.91,0.00030094,120]
[404887600,1770650089190,700.3,0.00027171,120]
[404887601,1770650089670,1400.61,0.00030083,120]
[404887602,1770650099563,688.84,0.00027191,120]
[404887603,1770650100122,1377.69,0.00030104,120]
[404887604,1770650121002,586.31061721,0.00013273,2]
[404887605,1770650121057,677.57,0.00027273,120]
[404887606,1770650141141,673.88,0.0002719,120]
[404887607,1770650159640,670.2,0.0002719,120]
[404887608,1770650166801,666.54,0.00027164,120]
[404887609,1770650174252,500.0,0.00013273,2]
[404887610,1770650174315,358.74399458,0.00013821,2]
[404887611,1770650185650,666.54,0.00026084,120]
[404887612,1770650186009,1333.09,0.00028879,120]
[404887613,1770650187476,500.0,0.00013273,2]
[404887614,1770650188844,455.60127165,0.00013273,2]
[404887615,1770650208371,652.0,0.00027198,120]
[404887616,1770650208737,1304.0,0.00030112,120]
[404887617,1770650218012,-245.05,0.000263,5]
[404887618,1770650218033,-301.06,0.000288,3]
[404887619,1770650228400,641.33,0.0002682,120]
[404887621,1770650249636,637.83,0.00026824,120]
[404887622,1770650249988,1275.67,0.00029698,120]
[404887624,1770650270214,627.4,0.00026827,120]
[404887636,1770650289004,623.97,0.00026836,120]
[404887637,1770650289585,1247.95,0.00029712,120]
[404887638,1770650310127,613.76,0.00025999,120]
[404887639,1770650310498,1227.53,0.00028785,120]
[404887640,1770650329104,603.72,0.00025988,120]
[404887641,1770650329455,1207.44,0.00028773,120]
[404887642,1770650339896,593.84,0.00025968,120]
[404887643,1770650340259,1187.68,0.0002875,120]
[404887644,1770650359159,584.12,0.00025957,120]
[404887645,1770650359500,1168.25,0.00028738,120]
[404887646,1770650377346,574.57,0.00025955,120]
[404887647,1770650378236,1149.13,0.00028736,120]
[404887648,1770650412095,565.16,0.00025948,120]
[404887649,1770650432153,562.08,0.00025964,120]
[404887650,1770650432987,1124.16,0.00028745,120]
[404887651,1770650435038,200.0,0.00027,120]
[404887652,1770650468280,501.149941,0.00013273,2]
[404887653,1770650533093,552.88,0.00025778,120]
[404887654,1770650543880,549.87,0.00025996,120]
[404887655,1770650544249,1099.74,0.00028782,120]
[404887656,1770650561654,540.87,0.00025783,120]
[404887657,1770650562042,1081.74,0.00028546,120]
[404887658,1770650573125,532.02,0.00025767,120]
[404887659,1770650573500,1064.04,0.00028528,120]
[404887660,1770650591610,523.31,0.00025768,120]
[404887661,1770650591999,1046.63,0.00028529,120]
[404887666,1770650601853,514.75,0.00025766,120]
[404887667,1770650602266,1029.5,0.00028526,120]
[404887668,1770650620297,506.33,0.00025764,120]
[404887669,1770650620805,1012.65,0.00028525,120]
[404887670,1770650630260,498.04,0.00025939,120]
[404887671,1770650630636,996.08,0.00028718,120]
[404887672,1770650643935,511.11877133,0.00013273,2]
[404887673,1770650650499,489.89,0.00025937,120]
[404887674,1770650650872,979.78,0.00028716,120]
[404887675,1770650703963,501.07787851,0.00013699,2]
[404887676,1770650704027,501.85094041,0.00013273,2]
[404887687,1770650780112,502.97656979,0.00013273,2]
[404887689,1770650793230,452.75553748,0.00013273,2]
[404887762,1770650885729,613.99272459,0.00013273,2]
[404888076,1770651032037,-621.39140172,0.00025,15]
[404888077,1770651032050,-1378.98,0.00025,15]
[404888095,1770651040248,-1051.83685,0.00025,15]
[404888130,1770651045900,-963.41520352,0.00025,15]
[404888131,1770651045910,-7.72353788,0.0003,2]
[404888132,1770651045921,-2723.57768648,0.0003,2]
[404888133,1770651045932,-350.07,0.000312,20]
[404888135,1770651045941,-200.0,0.000323,120]
[404888136,1770651045950,-399.08,0.000337,30]
[404888137,1770651045960,-2821.53874585,0.00034358,2]
[404888138,1770651045969,-1687.34,0.000362,60]
[404888139,1770651045978,-768.5,0.00037838,30]
[404888140,1770651045988,-754.0,0.00037838,30]
[404888141,1770651046000,-168.0,0.00037879,2]
[404888142,1770651046010,-486.17361372,0.00038,120]
[404888143,1770651046019,-1393.28,0.000387,60]
[404888144,1770651046030,-200.0,0.00039563,120]
[404888145,1770651046040,-1330.32223596,0.000399,2]
[404888146,1770651046053,-444.17131717,0.0004,7]
[404888147,1770651046066,-21011.24123345,0.0004,120]
[404888148,1770651046079,-210.05838591,0.0004,2]
[404888149,1770651046092,-200.0,0.00040028,120]
[404888150,1770651046103,-168.0,0.00040288,2]
[404888151,1770651046114,-150.0,0.00040485,2]
[404888152,1770651046129,-353.180928,0.00040485,10]
[404888153,1770651046141,-92344.0426271,0.00040485,2]
[404888154,1770651046152,-300.0,0.00040485,2]
[404888155,1770651046162,-3047.60681139,0.00040485,2]
[404888156,1770651046173,-150.0,0.00040488,61]
[404888157,1770651046185,-150.0,0.00040488,61]
[404888158,1770651046195,-150.0,0.00040488,61]
[404888159,1770651046207,-150.0,0.00040488,61]
[404888160,1770651046219,-175.0,0.00040488,61]
[404888161,1770651046230,-600.0,0.00040829,60]
[404888162,1770651046241,-552.02,0.00041096,120]
[404888163,1770651046251,-871.87,0.00041096,120]
[404888164,1770651046262,-1127.23,0.000411,120]
[404888165,1770651046273,-200.0,0.00041131,120]
[404888166,1770651046284,-328.19259471,0.00042,120]
[404888167,1770651046295,-200.0,0.0004231,120]
[404888168,1770651046306,-200.0,0.00042511,120]
[404888169,1770651046317,-444.17131717,0.00042965,7]
[404888170,1770651046328,-2441.5901,0.0004322,7]
[404888171,1770651046339,-882.18,0.000436,120]
[404888172,1770651046350,-467.06004958,0.000438,30]
[404888173,1770651046361,-217.40454053,0.00043836,2]
[404888174,1770651046373,-444.17131717,0.00043938,7]
[404888175,1770651046385,-444.17131717,0.00043938,7]
[404888176,1770651046396,-207.00422268,0.00044537,90]
[404888177,1770651046408,-200.0,0.00044638,120]
[404888178,1770651046420,-966.26448897,0.000449,120]
[404888179,1770651046431,-720.0,0.00044911,60]
[404888180,1770651046443,-470.96652693,0.00045,120]
[404888181,1770651046455,-884.2837343,0.00045,20]
[404888182,1770651046466,-6587.80829722,0.00045,2]
[404888183,1770651046476,-599.82425668,0.00045,120]
[404888184,1770651046488,-233.08,0.0004533,120]
[404888185,1770651046498,-210.04,0.000461,120]
[404888186,1770651046511,-1444.0,0.00046466,120]
[404888187,1770651046522,-200.0,0.00047293,120]
[404888189,1770651046533,-510.53633331,0.00048,120]
[404888191,1770651046543,-152.13290659,0.00048,120]
[404888192,1770651046554,-168.03,0.000486,90]
[404888193,1770651046564,-245.0,0.0004865,77]
[404888195,1770651046575,-1000.0,0.00048767,7]
[404888196,1770651046587,-207.34145021,0.000488,2]
[404888197,1770651046598,-317.48331846,0.00049,15]
[404888198,1770651046609,-156.55183492,0.00049096,2]
[404888199,1770651046620,-263.38553367,0.00049315,120]
[404888200,1770651046631,-500.0,0.00049315,120]
[404888201,1770651046644,-500.0,0.00049315,8]
[404888202,1770651046654,-617.90712018,0.00049315,120]
[404888203,1770651046667,-153.38436167,0.00049315,120]
[404888204,1770651046679,-500.0,0.00049315,120]
[404888205,1770651046691,-500.0,0.00049315,120]
[404888206,1770651046700,-500.0,0.00049315,120]
[404888207,1770651046710,-555.82714739,0.00049315,120]
[404888208,1770651046720,-500.0,0.00049315,120]
[404888209,1770651046730,-500.0,0.00049315,120]
[404888210,1770651046740,-500.0,0.00049315,120]
[404888211,1770651046751,-500.0,0.00049315,120]
[404888212,1770651046762,-500.0,0.00049315,120]
[404888213,1770651046772,-500.0,0.00049315,120]
[404888214,1770651046782,-511.05107971,0.00049315,120]
[404888215,1770651046792,-189.84657036,0.00049315,30]
[404888216,1770651046803,-500.0,0.00049315,120]
[404888217,1770651046814,-505.89292446,0.00049315,120]
[404888218,1770651046824,-500.0,0.00049315,120]
[404888219,1770651046835,-500.0,0.00049315,120]
[404888220,1770651046845,-212.56189916,0.00049315,120]
[404888221,1770651046856,-158.82869099,0.00049315,120]
[404888222,1770651046867,-450.61697123,0.00049315,120]
[404888223,1770651046878,-500.0,0.00049315,120]
[404888224,1770651046888,-1000.0,0.00049315,2]
[404888225,1770651046899,-500.0,0.00049315,120]
[404888226,1770651046910,-500.0,0.00049315,120]
[404888227,1770651046921,-510.7724401,0.00049315,120]
[404888228,1770651046934,-269.88528336,0.00049315,120]
[404888229,1770651046945,-437.63200818,0.00049315,120]
[404888230,1770651046955,-542.75050476,0.00049315,120]
[404888231,1770651046966,-170.01195029,0.00049315,120]
[404888232,1770651046977,-531.3207868,0.00049315,120]
[404888233,1770651046988,-579.04719475,0.00049315,120]
[404888234,1770651047003,-500.0,0.00049315,120]
[404888235,1770651047014,-500.0,0.00049315,120]
[404888236,1770651047024,-500.0,0.00049315,120]
[404888237,1770651047035,-334.52277967,0.00049315,120]
[404888238,1770651047047,-156.56539319,0.00049315,120]
[404888239,1770651047058,-500.0,0.00049315,120]
[404888240,1770651047070,-500.0,0.00049315,120]
[404888241,1770651047080,-500.0,0.00049315,120]
[404888242,1770651047091,-500.0,0.00049315,120]
[404888243,1770651047101,-519.40443681,0.00049315,120]
[404888244,1770651047124,-500.0,0.00049315,120]
[404888245,1770651047137,-500.0,0.00049315,120]
[404888246,1770651047150,-543.79984557,0.00049315,120]
[404888247,1770651047165,-519.52134805,0.00049315,120]
[404888248,1770651047177,-499.22393283,0.00049315,120]
[404888249,1770651047191,-189.35931067,0.00049315,120]
[404888250,1770651047204,-441.09052783,0.00049315,120]
[404888251,1770651047217,-500.0,0.00049315,120]
[404888252,1770651047229,-573.47644109,0.00049315,120]
[404888253,1770651047242,-500.0,0.00049315,120]
[404888254,1770651047253,-599.32973032,0.00049315,120]
[404888255,1770651047264,-500.0,0.00049315,120]
[404888256,1770651047275,-500.0,0.00049315,120]
[404888257,1770651047287,-500.0,0.00049315,120]
[404888258,1770651047300,-500.0,0.00049315,120]
[404888259,1770651047311,-500.0,0.00049315,120]
[404888260,1770651047322,-194.59245267,0.00049315,120]
[404888261,1770651047334,-500.0,0.00049315,53]
[404888262,1770651047344,-500.0,0.00049315,120]
[404888263,1770651047356,-500.0,0.00049315,120]
[404888264,1770651047369,-500.0,0.00049315,120]
[404888265,1770651047382,-221.38150099,0.00049315,120]
[404888266,1770651047393,-522.80758013,0.00049315,120]
[404888267,1770651047404,-500.0,0.00049315,120]
[404888268,1770651047415,-556.39158612,0.00049315,120]
[404888269,1770651047425,-500.0,0.00049315,120]
[404888270,1770651047436,-500.0,0.00049315,120]
[404888271,1770651047447,-500.0,0.00049315,2]
[404888272,1770651047457,-389.60397015,0.00049315,120]
[404888273,1770651047467,-500.93074508,0.00049315,120]
[404888274,1770651047479,-500.0,0.00049315,120]
[404888275,1770651047490,-297.74052114,0.00049315,120]
[404888276,1770651047501,-500.0,0.00049315,120]
[404888277,1770651047512,-513.99985955,0.00049315,120]
[404888278,1770651047523,-505.65355948,0.00049315,120]
[404888279,1770651047534,-501.18447383,0.00049315,120]
[404888280,1770651047544,-380.65462605,0.00049315,120]
[404888281,1770651047555,-213.21553117,0.00049315,120]
[404888282,1770651047566,-500.0,0.00049315,120]
[404888283,1770651047577,-500.0,0.00049315,2]
[404888284,1770651047588,-525.31812738,0.00049315,120]
[404888285,1770651047599,-169.72675475,0.00049315,120]
[404888286,1770651047610,-500.0,0.00049315,120]
[404888287,1770651047622,-500.0,0.00049315,120]
[404888288,1770651047634,-504.03927025,0.00049315,120]
[404888289,1770651047648,-500.0,0.00049315,120]
[404888290,1770651047659,-617.98585279,0.00049315,120]
[404888291,1770651047670,-500.0,0.00049315,120]
[404888292,1770651047682,-241.0534214,0.00049315,120]
[404888293,1770651047694,-500.0,0.00049315,120]
[404888294,1770651047704,-535.44374016,0.00049315,120]
[404888295,1770651047716,-500.0,0.00049315,120]
[404888296,1770651047727,-500.0,0.00049315,120]
[404888297,1770651047740,-500.0,0.00049315,120]
[404888298,1770651047751,-4538.91,0.00049315,21]
[404888299,1770651047762,-500.0,0.00049315,120]
[404888300,1770651047773,-500.0,0.00049315,120]
[404888301,1770651047936,-500.0,0.00049315,120]
[404888302,1770651047946,-247.70287884,0.00049315,120]
[404888303,1770651047956,-509.54767179,0.00049315,120]
[404888304,1770651047966,-500.0,0.00049315,2]
[404888305,1770651047977,-506.5864833,0.00049315,120]
[404888306,1770651047987,-218.56071638,0.00049315,120]
[404888307,1770651048000,-550.28,0.00049315,120]
[404888308,1770651048010,-161.88094603,0.00049315,120]
[404888309,1770651048019,-552.57922192,0.00049315,120]
[404888310,1770651048029,-587.87,0.00049315,120]
[404888311,1770651048041,-500.0,0.00049315,120]
[404888312,1770651048050,-500.0,0.00049315,120]
[404888313,1770651048060,-500.0,0.00049315,120]
[404888314,1770651048070,-500.0,0.00049315,120]
[404888315,1770651048081,-500.0,0.00049315,120]
[404888316,1770651048092,-566.20326143,0.00049315,120]
[404888317,1770651048102,-500.0,0.00049315,120]
[404888318,1770651048111,-500.0,0.00049315,120]
[404888319,1770651048122,-500.0,0.00049315,120]
[404888320,1770651048132,-500.0,0.00049315,120]
[404888321,1770651048141,-500.0,0.00049315,120]
[404888322,1770651048151,-270.51614372,0.00049315,120]
[404888323,1770651048160,-500.0,0.00049315,120]
[404888324,1770651048169,-500.0,0.00049315,120]
[404888325,1770651048180,-166.22879273,0.00049315,120]
[404888326,1770651048190,-500.0,0.00049315,120]
[404888327,1770651048200,-527.46293757,0.00049315,120]
[404888328,1770651048210,-500.0,0.00049315,120]
[404888329,1770651048220,-500.0,0.00049315,120]
[404888330,1770651048229,-500.0,0.00049315,120]
[404888331,1770651048239,-500.0,0.00049315,120]
[404888332,1770651048248,-500.0,0.00049315,120]
[404888333,1770651048258,-500.0,0.00049315,120]
[404888334,1770651048267,-500.0,0.00049315,120]
[404888335,1770651048277,-208.40709229,0.00049315,120]
[404888336,1770651048286,-500.0,0.00049315,120]
[404888337,1770651048295,-500.0,0.00049315,120]
[404888338,1770651048303,-520.12771957,0.00049315,120]
[404888339,1770651048312,-500.0,0.00049315,120]
[404888340,1770651048321,-500.0,0.00049315,120]
[404888341,1770651048330,-500.0,0.00049315,120]
[404888342,1770651048339,-500.0,0.00049315,120]
[404888343,1770651048348,-500.0,0.00049315,120]
[404888344,1770651048357,-311.22459131,0.00049315,120]
[404888345,1770651048366,-193.9518494,0.00049315,120]
[404888346,1770651048376,-500.0,0.00049315,30]
[404888347,1770651048385,-500.0,0.00049315,120]
[404888348,1770651048394,-244.44434144,0.00049315,120]
[404888349,1770651048404,-500.0,0.00049315,30]
[404888350,1770651048414,-153.00837104,0.00049315,120]
[404888351,1770651048423,-500.0,0.00049315,120]
[404888352,1770651048433,-500.0,0.00049315,120]
[404888353,1770651048444,-160.35280439,0.00049315,120]
[404888354,1770651048454,-500.0,0.00049315,120]
[404888355,1770651048463,-1571.51,0.00049315,20]
[404888356,1770651048473,-500.0,0.00049315,120]
[404888357,1770651048483,-500.0,0.00049315,120]
[404888358,1770651048493,-442.62515395,0.00049315,120]
[404888359,1770651048502,-620.66,0.00049315,120]
[404888360,1770651048512,-500.0,0.00049315,120]
[404888361,1770651048522,-609.83380113,0.00049315,120]
[404888362,1770651048533,-500.0,0.00049315,120]
[404888363,1770651048547,-500.0,0.00049315,2]
[404888364,1770651048558,-636.44,0.00049315,120]
[404888365,1770651048568,-500.0,0.00049315,120]
[404888366,1770651048577,-500.0,0.00049315,2]
[404888367,1770651048587,-500.0,0.00049315,120]
[404888368,1770651048598,-500.0,0.00049315,120]
[404888369,1770651048607,-500.0,0.00049315,14]
[404888370,1770651048617,-500.0,0.00049315,120]
[404888371,1770651048628,-598.84902679,0.00049315,120]
[404888372,1770651048638,-546.05,0.00049315,120]
[404888373,1770651048648,-627.82893971,0.00049315,120]
[404888374,1770651048658,-864.0,0.00049403,120]
[404888375,1770651048668,-200.0,0.00049509,120]
[404888376,1770651048677,-500.0,0.00049589,120]
[404888377,1770651048688,-500.0,0.00049589,120]
[404888378,1770651048698,-500.0,0.00049589,120]
[404888379,1770651048707,-1000.0,0.00049589,2]
[404888380,1770651048716,-380.16,0.00049589,120]
[404888381,1770651048725,-500.0,0.00049589,2]
[404888382,1770651048736,-297.77,0.00049589,120]
[404888383,1770651048745,-500.0,0.00049589,120]
[404888384,1770651048755,-4538.91,0.00049589,21]
[404888385,1770651048764,-587.87,0.00049589,120]
[404888386,1770651048776,-500.0,0.00049589,120]
[404888387,1770651048785,-644.06258884,0.00049589,120]
[404888388,1770651048794,-337.13956039,0.00049589,120]